[Event "Titled Tuesday Blitz September 28 2021"]
[White "Odegov, Artem"]
[Black "Aldokhin, Ivan"]
[WhiteFideId "34183644"]
[BlackFideId "24115720"]
[WhiteElo "2257"]
[BlackElo "2265"]
[Result "0-1"]
[Round "04"]
[TimeControl "180+1"]
[Date "2021.09.28"]
[WhiteClock "0:00:01"]
[BlackClock "0:00:18"]

1. d4 {[%clk 0:03:00]}  Nf6 {[%clk 0:03:00]} 2. c4 {[%clk 0:03:00]}  g6 {[%clk 0:03:00]} 3. Nc3 {[%clk 0:03:00]}  Bg7 {[%clk 0:03:00]} 4. e4 {[%clk 0:03:00]}  d6 {[%clk 0:03:01]} 5. h3 {[%clk 0:03:01]}  O-O {[%clk 0:03:02]} 6. Be3 {[%clk 0:03:01]}  Nc6 {[%clk 0:03:02]} 7. d5 {[%clk 0:03:01]}  Nb4 {[%clk 0:03:03]} 8. a3 {[%clk 0:02:56]}  Na6 {[%clk 0:03:03]} 9. Bd3 {[%clk 0:02:56]}  Re8 {[%clk 0:03:04]} 10. Nge2 {[%clk 0:02:55]}  e6 {[%clk 0:03:04]} 11. O-O {[%clk 0:02:37]}  exd5 {[%clk 0:02:55]} 12. cxd5 {[%clk 0:02:31]}  Nc5 {[%clk 0:02:54]} 13. Qc2 {[%clk 0:02:03]}  Nxd3 {[%clk 0:02:43]} 14. Qxd3 {[%clk 0:02:04]}  Bd7 {[%clk 0:02:38]} 15. Rac1 {[%clk 0:02:00]}  a6 {[%clk 0:02:37]} 16. f4 {[%clk 0:01:58]}  Nxe4 {[%clk 0:02:21]} 17. Nxe4 {[%clk 0:01:55]}  Bb5 {[%clk 0:02:21]} 18. Qc2 {[%clk 0:01:32]}  Bxe2 {[%clk 0:02:07]} 19. Rfe1 {[%clk 0:01:28]}  Bb5 {[%clk 0:02:06]} 20. Kh2 {[%clk 0:01:12]}  Rc8 {[%clk 0:01:55]} 21. Bf2 {[%clk 0:01:07]}  Bd7 {[%clk 0:01:38]} 22. Qb3 {[%clk 0:01:00]}  b6 {[%clk 0:01:20]} 23. Ng5 {[%clk 0:00:39]}  h6 {[%clk 0:01:16]} 24. Nf3 {[%clk 0:00:39]}  Rxe1 {[%clk 0:01:08]} 25. Rxe1 {[%clk 0:00:37]}  Qf6 {[%clk 0:01:08]} 26. Re2 {[%clk 0:00:17]}  Qxf4+ {[%clk 0:01:04]} 27. Bg3 {[%clk 0:00:17]}  Qf6 {[%clk 0:01:02]} 28. Rc2 {[%clk 0:00:12]}  Bf5 {[%clk 0:00:48]} 29. Rf2 {[%clk 0:00:12]}  g5 {[%clk 0:00:41]} 30. h4 {[%clk 0:00:03]}  Qg6 {[%clk 0:00:37]} 31. Nd2 {[%clk 0:00:01]}  gxh4 {[%clk 0:00:34]} 32. Bxh4 {[%clk 0:00:02]}  Re8 {[%clk 0:00:31]} 33. Nf3 {[%clk 0:00:01]}  Re4 {[%clk 0:00:29]} 34. Bg3 {[%clk 0:00:02]}  Rg4 {[%clk 0:00:29]} 35. Ng1 {[%clk 0:00:01]}  Be4 {[%clk 0:00:17]} 36. Nh3 {[%clk 0:00:01]}  Be5 {[%clk 0:00:17]} 37. Bxe5 {[%clk 0:00:01]}  Rxg2+ {[%clk 0:00:17]} 38. Rxg2 {[%clk 0:00:01]}  Qxg2# {[%clk 0:00:18]} 0-1


[Site "https://www.chess.com"]

[Event "Titled Tuesday Blitz September 28 2021"]
[White "Pasti, Aron"]
[Black "Gasanov, Zaur"]
[WhiteFideId "785857"]
[BlackFideId "34125970"]
[WhiteElo "2080"]
[BlackElo "2099"]
[Result "0-1"]
[Round "04"]
[TimeControl "180+1"]
[Date "2021.09.28"]
[WhiteClock "0:00:17"]
[BlackClock "0:01:32"]

1. e4 {[%clk 0:03:00]}  c5 {[%clk 0:02:59]} 2. Nf3 {[%clk 0:03:01]}  e6 {[%clk 0:03:00]} 3. d4 {[%clk 0:03:01]}  cxd4 {[%clk 0:03:01]} 4. Nxd4 {[%clk 0:03:02]}  Nc6 {[%clk 0:03:01]} 5. Nc3 {[%clk 0:03:01]}  Qc7 {[%clk 0:03:01]} 6. Be3 {[%clk 0:02:57]}  a6 {[%clk 0:03:00]} 7. Qf3 {[%clk 0:02:56]}  Nf6 {[%clk 0:02:59]} 8. O-O-O {[%clk 0:02:55]}  Nxd4 {[%clk 0:02:59]} 9. Bxd4 {[%clk 0:02:55]}  e5 {[%clk 0:03:00]} 10. Qg3 {[%clk 0:02:32]}  d6 {[%clk 0:02:57]} 11. Be3 {[%clk 0:02:30]}  b5 {[%clk 0:02:57]} 12. f4 {[%clk 0:02:16]}  b4 {[%clk 0:02:56]} 13. Nd5 {[%clk 0:02:05]}  Nxd5 {[%clk 0:02:54]} 14. exd5 {[%clk 0:02:04]}  Bf5 {[%clk 0:02:54]} 15. Rd2 {[%clk 0:01:55]}  f6 {[%clk 0:02:43]} 16. Qf2 {[%clk 0:01:46]}  Bg6 {[%clk 0:02:25]} 17. h4 {[%clk 0:01:43]}  Be7 {[%clk 0:02:21]} 18. h5 {[%clk 0:01:42]}  Bf7 {[%clk 0:02:20]} 19. Kb1 {[%clk 0:01:35]}  O-O {[%clk 0:02:15]} 20. Bd3 {[%clk 0:01:27]}  a5 {[%clk 0:02:09]} 21. g4 {[%clk 0:01:17]}  a4 {[%clk 0:02:01]} 22. Rdd1 {[%clk 0:00:41]}  b3 {[%clk 0:01:46]} 23. cxb3 {[%clk 0:00:39]}  axb3 {[%clk 0:01:47]} 24. a3 {[%clk 0:00:39]}  Bxd5 {[%clk 0:01:40]} 25. Bxh7+ {[%clk 0:00:31]}  Kxh7 {[%clk 0:01:39]} 26. Rxd5 {[%clk 0:00:32]}  Qc4 {[%clk 0:01:38]} 27. Rhd1 {[%clk 0:00:28]}  Rfc8 {[%clk 0:01:35]} 28. Qd2 {[%clk 0:00:17]}  Qc2+ {[%clk 0:01:34]} 29. Ka1 {[%clk 0:00:17]}  Rxa3+ {[%clk 0:01:32]} 0-1


[Site "https://www.chess.com"]

[Event "Titled Tuesday Blitz September 28 2021"]
[White "Pavlidis, Anastasios"]
[Black "Schmakel, Sam"]
[WhiteFideId "4208404"]
[BlackFideId "2039311"]
[WhiteElo "2136"]
[BlackElo "2356"]
[Result "0-1"]
[Round "04"]
[TimeControl "180+1"]
[Date "2021.09.28"]
[WhiteClock "0:00:19"]
[BlackClock "0:00:05"]

1. d4 {[%clk 0:03:00]}  Nf6 {[%clk 0:03:00]} 2. c4 {[%clk 0:03:00]}  g6 {[%clk 0:03:00]} 3. Nc3 {[%clk 0:02:59]}  Bg7 {[%clk 0:03:01]} 4. e4 {[%clk 0:02:59]}  d6 {[%clk 0:03:01]} 5. Nf3 {[%clk 0:02:59]}  O-O {[%clk 0:03:02]} 6. Be2 {[%clk 0:02:58]}  e5 {[%clk 0:03:01]} 7. Be3 {[%clk 0:02:57]}  c6 {[%clk 0:03:00]} 8. d5 {[%clk 0:02:48]}  Na6 {[%clk 0:03:00]} 9. O-O {[%clk 0:02:46]}  Ng4 {[%clk 0:02:56]} 10. Bc1 {[%clk 0:02:44]}  f5 {[%clk 0:02:50]} 11. Ne1 {[%clk 0:02:43]}  Nf6 {[%clk 0:02:48]} 12. f3 {[%clk 0:02:40]}  f4 {[%clk 0:02:24]} 13. Rb1 {[%clk 0:02:28]}  g5 {[%clk 0:02:20]} 14. dxc6 {[%clk 0:02:25]}  bxc6 {[%clk 0:02:21]} 15. b4 {[%clk 0:02:25]}  Rf7 {[%clk 0:02:08]} 16. c5 {[%clk 0:02:22]}  d5 {[%clk 0:02:02]} 17. exd5 {[%clk 0:02:15]}  cxd5 {[%clk 0:02:03]} 18. Nd3 {[%clk 0:01:59]}  Qe7 {[%clk 0:01:25]} 19. Ba3 {[%clk 0:01:52]}  e4 {[%clk 0:01:23]} 20. Nxf4 {[%clk 0:01:29]}  gxf4 {[%clk 0:01:19]} 21. Nxd5 {[%clk 0:01:29]}  Nxd5 {[%clk 0:01:13]} 22. Qxd5 {[%clk 0:01:29]}  Nc7 {[%clk 0:00:38]} 23. Qxe4 {[%clk 0:01:28]}  Qxe4 {[%clk 0:00:38]} 24. fxe4 {[%clk 0:01:28]}  a6 {[%clk 0:00:35]} 25. Rbd1 {[%clk 0:01:11]}  Be6 {[%clk 0:00:17]} 26. Bh5 {[%clk 0:01:10]}  Rff8 {[%clk 0:00:12]} 27. Bc1 {[%clk 0:01:05]}  Be5 {[%clk 0:00:06]} 28. a3 {[%clk 0:00:59]}  a5 {[%clk 0:00:06]} 29. Be2 {[%clk 0:00:51]}  axb4 {[%clk 0:00:06]} 30. axb4 {[%clk 0:00:51]}  Rab8 {[%clk 0:00:07]} 31. Bd2 {[%clk 0:00:43]}  Nb5 {[%clk 0:00:04]} 32. Bxb5 {[%clk 0:00:28]}  Rxb5 {[%clk 0:00:05]} 33. Rfe1 {[%clk 0:00:24]}  Rd8 {[%clk 0:00:03]} 34. Kf2 {[%clk 0:00:16]}  Bg4 {[%clk 0:00:03]} 35. Bxf4 {[%clk 0:00:14]}  Rxd1 {[%clk 0:00:03]} 36. Rxd1 {[%clk 0:00:15]}  Bxd1 {[%clk 0:00:04]} 37. Bxe5 {[%clk 0:00:15]}  Rxb4 {[%clk 0:00:04]} 38. c6 {[%clk 0:00:16]}  Rxe4 {[%clk 0:00:04]} 39. c7 {[%clk 0:00:16]}  Rc4 {[%clk 0:00:04]} 40. h3 {[%clk 0:00:14]}  Kf7 {[%clk 0:00:05]} 41. Kg3 {[%clk 0:00:14]}  Ba4 {[%clk 0:00:05]} 42. Bd6 {[%clk 0:00:14]}  Bd7 {[%clk 0:00:05]} 43. Bf4 {[%clk 0:00:15]}  Bc8 {[%clk 0:00:05]} 44. Be5 {[%clk 0:00:15]}  Bb7 {[%clk 0:00:05]} 45. Bf4 {[%clk 0:00:15]}  Rc2 {[%clk 0:00:05]} 46. Kh4 {[%clk 0:00:15]}  Rxg2 {[%clk 0:00:04]} 47. Bg3 {[%clk 0:00:16]}  Rc2 {[%clk 0:00:05]} 48. Bf4 {[%clk 0:00:17]}  Kg6 {[%clk 0:00:05]} 49. Bg5 {[%clk 0:00:18]}  Rc4+ {[%clk 0:00:05]} 50. Kg3 {[%clk 0:00:19]}  Kxg5 {[%clk 0:00:05]} 0-1


[Site "https://www.chess.com"]

[Event "Titled Tuesday Blitz September 28 2021"]
[White "Perera Alfonso, Rene Humberto"]
[Black "Aradhya, Garg"]
[WhiteFideId "3514722"]
[BlackFideId "25006746"]
[WhiteElo "2313"]
[BlackElo "2146"]
[Result "1-0"]
[Round "04"]
[TimeControl "180+1"]
[Date "2021.09.28"]
[WhiteClock "0:00:08"]
[BlackClock "0:00:12"]

1. e4 {[%clk 0:03:00]}  e5 {[%clk 0:02:55]} 2. Nf3 {[%clk 0:02:59]}  Nc6 {[%clk 0:02:55]} 3. Bb5 {[%clk 0:03:00]}  a6 {[%clk 0:02:55]} 4. Ba4 {[%clk 0:03:00]}  Nf6 {[%clk 0:02:55]} 5. O-O {[%clk 0:03:00]}  b5 {[%clk 0:02:55]} 6. Bb3 {[%clk 0:03:00]}  Bc5 {[%clk 0:02:56]} 7. c3 {[%clk 0:03:00]}  d6 {[%clk 0:02:56]} 8. d4 {[%clk 0:03:00]}  Bb6 {[%clk 0:02:56]} 9. a4 {[%clk 0:03:00]}  Bd7 {[%clk 0:02:55]} 10. a5 {[%clk 0:02:57]}  Nxa5 {[%clk 0:02:40]} 11. Rxa5 {[%clk 0:02:50]}  Bxa5 {[%clk 0:02:41]} 12. dxe5 {[%clk 0:02:51]}  dxe5 {[%clk 0:02:41]} 13. Nxe5 {[%clk 0:02:51]}  O-O {[%clk 0:02:37]} 14. Bg5 {[%clk 0:02:51]}  Be8 {[%clk 0:02:32]} 15. Qf3 {[%clk 0:02:44]}  Qd6 {[%clk 0:02:30]} 16. Bf4 {[%clk 0:02:27]}  Qe7 {[%clk 0:02:27]} 17. Nd2 {[%clk 0:02:21]}  Bb6 {[%clk 0:02:25]} 18. h3 {[%clk 0:02:18]}  Rd8 {[%clk 0:02:17]} 19. Qe2 {[%clk 0:01:46]}  c5 {[%clk 0:01:52]} 20. Ndf3 {[%clk 0:01:42]}  c4 {[%clk 0:01:50]} 21. Bc2 {[%clk 0:01:42]}  Bc7 {[%clk 0:01:39]} 22. Ra1 {[%clk 0:01:41]}  a5 {[%clk 0:01:39]} 23. Qe3 {[%clk 0:01:31]}  Ra8 {[%clk 0:01:00]} 24. Rd1 {[%clk 0:01:14]}  a4 {[%clk 0:00:58]} 25. Nd4 {[%clk 0:01:01]}  Bxe5 {[%clk 0:00:57]} 26. Nf5 {[%clk 0:01:01]}  Qe6 {[%clk 0:00:53]} 27. Bxe5 {[%clk 0:01:00]}  Qxe5 {[%clk 0:00:53]} 28. Qg5 {[%clk 0:01:01]}  Nd7 {[%clk 0:00:45]} 29. Rxd7 {[%clk 0:01:00]}  Kh8 {[%clk 0:00:44]} 30. Rd5 {[%clk 0:00:51]}  Qf6 {[%clk 0:00:40]} 31. Qg3 {[%clk 0:00:50]}  a3 {[%clk 0:00:39]} 32. bxa3 {[%clk 0:00:48]}  Rxa3 {[%clk 0:00:39]} 33. e5 {[%clk 0:00:49]}  Qg6 {[%clk 0:00:37]} 34. Qe3 {[%clk 0:00:46]}  Qe6 {[%clk 0:00:16]} 35. Rd6 {[%clk 0:00:32]}  Qc8 {[%clk 0:00:16]} 36. Qg5 {[%clk 0:00:31]}  Rg8 {[%clk 0:00:16]} 37. Ne7 {[%clk 0:00:27]}  Qc5 {[%clk 0:00:13]} 38. Rd8 {[%clk 0:00:25]}  Ra1+ {[%clk 0:00:13]} 39. Kh2 {[%clk 0:00:24]}  Rf8 {[%clk 0:00:13]} 40. Qh5 {[%clk 0:00:09]}  Qxf2 {[%clk 0:00:12]} 41. Qxh7# {[%clk 0:00:08]} 1-0


[Site "https://www.chess.com"]

[Event "Titled Tuesday Blitz September 28 2021"]
[White "Pert, Richard G"]
[Black "Karavaeva, Olga"]
[WhiteFideId "404748"]
[BlackFideId "4124111"]
[WhiteElo "2441"]
[BlackElo "2105"]
[Result "1-0"]
[Round "04"]
[TimeControl "180+1"]
[Date "2021.09.28"]
[WhiteClock "0:00:16"]
[BlackClock "0:00:16"]

1. e4 {[%clk 0:03:00]}  c5 {[%clk 0:02:59]} 2. Nf3 {[%clk 0:03:00]}  e6 {[%clk 0:02:59]} 3. c3 {[%clk 0:02:53]}  Nf6 {[%clk 0:02:57]} 4. e5 {[%clk 0:02:53]}  Nd5 {[%clk 0:02:57]} 5. d4 {[%clk 0:02:53]}  cxd4 {[%clk 0:02:58]} 6. cxd4 {[%clk 0:02:54]}  d6 {[%clk 0:02:59]} 7. Bd3 {[%clk 0:02:52]}  Nc6 {[%clk 0:02:57]} 8. O-O {[%clk 0:02:51]}  dxe5 {[%clk 0:02:57]} 9. dxe5 {[%clk 0:02:50]}  Be7 {[%clk 0:02:57]} 10. Qe2 {[%clk 0:02:47]}  h6 {[%clk 0:02:50]} 11. Nc3 {[%clk 0:02:47]}  Nxc3 {[%clk 0:02:49]} 12. bxc3 {[%clk 0:02:47]}  Qc7 {[%clk 0:02:46]} 13. Bf4 {[%clk 0:02:43]}  b6 {[%clk 0:02:45]} 14. Rad1 {[%clk 0:02:37]}  Bb7 {[%clk 0:02:44]} 15. Rfe1 {[%clk 0:02:37]}  O-O-O {[%clk 0:02:37]} 16. a4 {[%clk 0:02:30]}  g5 {[%clk 0:02:36]} 17. Be3 {[%clk 0:02:20]}  Nxe5 {[%clk 0:02:16]} 18. Nxe5 {[%clk 0:02:09]}  Qxe5 {[%clk 0:02:17]} 19. Ba6 {[%clk 0:02:07]}  Qc7 {[%clk 0:02:11]} 20. Bd4 {[%clk 0:02:00]}  Rhg8 {[%clk 0:01:52]} 21. a5 {[%clk 0:01:57]}  Bc5 {[%clk 0:01:41]} 22. axb6 {[%clk 0:01:51]}  Bxb6 {[%clk 0:01:34]} 23. Rb1 {[%clk 0:01:27]}  Rd5 {[%clk 0:01:19]} 24. Rb4 {[%clk 0:01:14]}  Rgd8 {[%clk 0:00:43]} 25. Rc4 {[%clk 0:00:59]}  Bc5 {[%clk 0:00:31]} 26. Bxb7+ {[%clk 0:00:49]}  Kxb7 {[%clk 0:00:30]} 27. Rb1+ {[%clk 0:00:41]}  Kc8 {[%clk 0:00:28]} 28. g3 {[%clk 0:00:31]}  e5 {[%clk 0:00:22]} 29. Bxc5 {[%clk 0:00:25]}  Rxc5 {[%clk 0:00:19]} 30. Rxc5 {[%clk 0:00:25]}  Qxc5 {[%clk 0:00:20]} 31. Qa6+ {[%clk 0:00:25]}  Kd7 {[%clk 0:00:19]} 32. Rb7+ {[%clk 0:00:18]}  Ke8 {[%clk 0:00:18]} 33. Qa4+ {[%clk 0:00:18]}  Kf8 {[%clk 0:00:17]} 34. Qb3 {[%clk 0:00:16]}  Rd1+ {[%clk 0:00:16]} 35. Qxd1 {[%clk 0:00:16]} 1-0


[Site "https://www.chess.com"]

[Event "Titled Tuesday Blitz September 28 2021"]
[White "Potapova, Margarita"]
[Black "Sadhwani, Raunak"]
[WhiteFideId "14126869"]
[BlackFideId "35093487"]
[WhiteElo "2214"]
[BlackElo "2517"]
[Result "1/2-1/2"]
[Round "04"]
[TimeControl "180+1"]
[Date "2021.09.28"]
[WhiteClock "0:00:15"]
[BlackClock "0:00:33"]

1. d4 {[%clk 0:03:00]}  d6 {[%clk 0:02:57]} 2. e4 {[%clk 0:03:00]}  g6 {[%clk 0:02:56]} 3. Nc3 {[%clk 0:03:01]}  Nf6 {[%clk 0:02:54]} 4. Bg5 {[%clk 0:02:56]}  Bg7 {[%clk 0:02:52]} 5. e5 {[%clk 0:02:57]}  Nfd7 {[%clk 0:02:46]} 6. exd6 {[%clk 0:02:56]}  cxd6 {[%clk 0:02:47]} 7. Qd2 {[%clk 0:02:57]}  Nc6 {[%clk 0:02:46]} 8. Nf3 {[%clk 0:02:56]}  h6 {[%clk 0:02:44]} 9. Be3 {[%clk 0:02:55]}  Nf6 {[%clk 0:02:42]} 10. h3 {[%clk 0:02:50]}  Bd7 {[%clk 0:02:39]} 11. Be2 {[%clk 0:02:29]}  Rc8 {[%clk 0:02:39]} 12. O-O {[%clk 0:02:27]}  h5 {[%clk 0:02:37]} 13. Ng5 {[%clk 0:02:26]}  O-O {[%clk 0:02:37]} 14. Nce4 {[%clk 0:02:06]}  Nxe4 {[%clk 0:02:30]} 15. Nxe4 {[%clk 0:02:07]}  Qa5 {[%clk 0:02:31]} 16. c3 {[%clk 0:02:05]}  Rfe8 {[%clk 0:02:23]} 17. Bh6 {[%clk 0:02:05]}  Bf5 {[%clk 0:02:13]} 18. Bxg7 {[%clk 0:02:02]}  Kxg7 {[%clk 0:02:14]} 19. Ng3 {[%clk 0:02:01]}  h4 {[%clk 0:02:07]} 20. Nxf5+ {[%clk 0:01:58]}  Qxf5 {[%clk 0:02:08]} 21. Bg4 {[%clk 0:01:58]}  Qf6 {[%clk 0:02:09]} 22. Bxc8 {[%clk 0:01:57]}  Rxc8 {[%clk 0:02:09]} 23. Rae1 {[%clk 0:01:56]}  d5 {[%clk 0:02:08]} 24. Re3 {[%clk 0:01:55]}  e6 {[%clk 0:02:08]} 25. Rf3 {[%clk 0:01:55]}  Qe7 {[%clk 0:02:09]} 26. Re1 {[%clk 0:01:54]}  Rh8 {[%clk 0:02:06]} 27. b4 {[%clk 0:01:43]}  Rh5 {[%clk 0:02:04]} 28. a3 {[%clk 0:01:36]}  a6 {[%clk 0:02:04]} 29. Qd3 {[%clk 0:01:34]}  Qd8 {[%clk 0:01:52]} 30. b5 {[%clk 0:01:25]}  axb5 {[%clk 0:01:47]} 31. Qxb5 {[%clk 0:01:26]}  Na5 {[%clk 0:01:31]} 32. Re5 {[%clk 0:01:19]}  Rh8 {[%clk 0:01:22]} 33. Re1 {[%clk 0:00:32]}  Qc7 {[%clk 0:01:21]} 34. Rb1 {[%clk 0:00:28]}  Rc8 {[%clk 0:00:57]} 35. Qb6 {[%clk 0:00:28]}  Nc4 {[%clk 0:00:57]} 36. Qxc7 {[%clk 0:00:27]}  Rxc7 {[%clk 0:00:58]} 37. Rd3 {[%clk 0:00:22]}  Nxa3 {[%clk 0:00:58]} 38. Rb3 {[%clk 0:00:22]}  Nc4 {[%clk 0:00:57]} 39. Rd1 {[%clk 0:00:22]}  Nd6 {[%clk 0:00:58]} 40. Rdb1 {[%clk 0:00:22]}  Kf6 {[%clk 0:00:53]} 41. f3 {[%clk 0:00:22]}  b5 {[%clk 0:00:45]} 42. Kf2 {[%clk 0:00:22]}  Ra7 {[%clk 0:00:45]} 43. Ke2 {[%clk 0:00:20]}  Nc4 {[%clk 0:00:42]} 44. Rxb5 {[%clk 0:00:14]}  Ra2+ {[%clk 0:00:42]} 45. Kf1 {[%clk 0:00:05]}  Ne3+ {[%clk 0:00:36]} 46. Kg1 {[%clk 0:00:06]}  Rxg2+ {[%clk 0:00:36]} 47. Kh1 {[%clk 0:00:06]}  Rg3 {[%clk 0:00:37]} 48. Kh2 {[%clk 0:00:06]}  Rxf3 {[%clk 0:00:35]} 49. Rb7 {[%clk 0:00:07]}  Nc4 {[%clk 0:00:20]} 50. Ra7 {[%clk 0:00:05]}  Rxc3 {[%clk 0:00:18]} 51. Rf1+ {[%clk 0:00:06]}  Kg5 {[%clk 0:00:18]} 52. Raxf7 {[%clk 0:00:06]}  Ne3 {[%clk 0:00:14]} 53. Rg1+ {[%clk 0:00:06]}  Kh6 {[%clk 0:00:13]} 54. Rf6 {[%clk 0:00:07]}  Rc2+ {[%clk 0:00:12]} 55. Kh1 {[%clk 0:00:07]}  Nf5 {[%clk 0:00:13]} 56. Rfxg6+ {[%clk 0:00:07]}  Kh7 {[%clk 0:00:13]} 57. Rxe6 {[%clk 0:00:07]}  Ng3+ {[%clk 0:00:14]} 58. Rxg3 {[%clk 0:00:07]}  hxg3 {[%clk 0:00:14]} 59. Re3 {[%clk 0:00:07]}  Rd2 {[%clk 0:00:13]} 60. Rxg3 {[%clk 0:00:07]}  Rxd4 {[%clk 0:00:14]} 61. Kg2 {[%clk 0:00:07]}  Kh6 {[%clk 0:00:13]} 62. Kf2 {[%clk 0:00:07]}  Kh5 {[%clk 0:00:14]} 63. Rg8 {[%clk 0:00:06]}  Kh4 {[%clk 0:00:14]} 64. Rg4+ {[%clk 0:00:07]}  Rxg4 {[%clk 0:00:13]} 65. hxg4 {[%clk 0:00:07]}  Kxg4 {[%clk 0:00:14]} 66. Ke3 {[%clk 0:00:08]}  Kf5 {[%clk 0:00:15]} 67. Kd4 {[%clk 0:00:08]}  Ke6 {[%clk 0:00:16]} 68. Kd3 {[%clk 0:00:09]}  Kd6 {[%clk 0:00:16]} 69. Kd4 {[%clk 0:00:09]}  Kc6 {[%clk 0:00:17]} 70. Kd3 {[%clk 0:00:09]}  Kc5 {[%clk 0:00:18]} 71. Kc3 {[%clk 0:00:10]}  Kd6 {[%clk 0:00:19]} 72. Kd4 {[%clk 0:00:10]}  Ke6 {[%clk 0:00:20]} 73. Kd3 {[%clk 0:00:10]}  Ke5 {[%clk 0:00:20]} 74. Ke3 {[%clk 0:00:10]}  d4+ {[%clk 0:00:21]} 75. Kd3 {[%clk 0:00:11]}  Kd5 {[%clk 0:00:21]} 76. Kd2 {[%clk 0:00:11]}  Kc5 {[%clk 0:00:22]} 77. Kd3 {[%clk 0:00:12]}  Kd5 {[%clk 0:00:22]} 78. Kd2 {[%clk 0:00:12]}  Ke4 {[%clk 0:00:22]} 79. Ke2 {[%clk 0:00:12]}  Kf5 {[%clk 0:00:23]} 80. Kd3 {[%clk 0:00:12]}  Ke5 {[%clk 0:00:24]} 81. Kd2 {[%clk 0:00:13]}  Ke4 {[%clk 0:00:25]} 82. Ke2 {[%clk 0:00:13]}  d3+ {[%clk 0:00:26]} 83. Kd2 {[%clk 0:00:13]}  Kd4 {[%clk 0:00:27]} 84. Kd1 {[%clk 0:00:13]}  Ke3 {[%clk 0:00:27]} 85. Ke1 {[%clk 0:00:13]}  Kd4 {[%clk 0:00:28]} 86. Kd2 {[%clk 0:00:14]}  Kc4 {[%clk 0:00:29]} 87. Kd1 {[%clk 0:00:14]}  Kc3 {[%clk 0:00:30]} 88. Kc1 {[%clk 0:00:14]}  Kb4 {[%clk 0:00:29]} 89. Kd2 {[%clk 0:00:14]}  Kc4 {[%clk 0:00:30]} 90. Kd1 {[%clk 0:00:14]}  Kc3 {[%clk 0:00:31]} 91. Kc1 {[%clk 0:00:15]}  d2+ {[%clk 0:00:32]} 92. Kd1 {[%clk 0:00:15]}  Kd3 {[%clk 0:00:33]} 1/2-1/2


[Site "https://www.chess.com"]

[Event "Titled Tuesday Blitz September 28 2021"]
[White "Quispe Arteaga, Gabriel"]
[Black "Pandey Srishti"]
[WhiteFideId "32059809"]
[BlackFideId "35093290"]
[WhiteElo "2192"]
[BlackElo "1816"]
[Result "1-0"]
[Round "04"]
[TimeControl "180+1"]
[Date "2021.09.28"]
[WhiteClock "0:00:08"]
[BlackClock "0:00:12"]

1. c4 {[%clk 0:03:00]}  e5 {[%clk 0:02:58]} 2. Nc3 {[%clk 0:03:00]}  Nf6 {[%clk 0:02:56]} 3. g3 {[%clk 0:03:00]}  d5 {[%clk 0:02:52]} 4. cxd5 {[%clk 0:03:01]}  Nxd5 {[%clk 0:02:52]} 5. Bg2 {[%clk 0:03:02]}  Nb6 {[%clk 0:02:46]} 6. Nf3 {[%clk 0:03:02]}  Nc6 {[%clk 0:02:41]} 7. O-O {[%clk 0:03:03]}  Bc5 {[%clk 0:02:39]} 8. a3 {[%clk 0:03:01]}  O-O {[%clk 0:02:30]} 9. b4 {[%clk 0:03:01]}  Bd6 {[%clk 0:02:28]} 10. Bb2 {[%clk 0:02:59]}  a5 {[%clk 0:02:27]} 11. b5 {[%clk 0:02:59]}  Nd4 {[%clk 0:02:27]} 12. Nxd4 {[%clk 0:02:55]}  exd4 {[%clk 0:02:28]} 13. Ne4 {[%clk 0:02:56]}  Be5 {[%clk 0:02:26]} 14. Rc1 {[%clk 0:02:55]}  Be6 {[%clk 0:02:24]} 15. f4 {[%clk 0:02:45]}  Bd6 {[%clk 0:01:45]} 16. f5 {[%clk 0:02:22]}  Bd5 {[%clk 0:01:39]} 17. f6 {[%clk 0:02:22]}  g6 {[%clk 0:01:37]} 18. d3 {[%clk 0:02:22]}  a4 {[%clk 0:01:30]} 19. Qd2 {[%clk 0:02:21]}  Re8 {[%clk 0:01:23]} 20. Qh6 {[%clk 0:02:00]}  Bf8 {[%clk 0:01:22]} 21. Qh4 {[%clk 0:02:01]}  Bxe4 {[%clk 0:01:19]} 22. Bxe4 {[%clk 0:01:59]}  Rb8 {[%clk 0:01:09]} 23. Qg5 {[%clk 0:01:31]}  Qd6 {[%clk 0:01:05]} 24. Kg2 {[%clk 0:01:19]}  Re5 {[%clk 0:01:04]} 25. Qf4 {[%clk 0:01:17]}  Rxb5 {[%clk 0:01:03]} 26. Qxd6 {[%clk 0:01:12]}  Bxd6 {[%clk 0:01:04]} 27. Bxd4 {[%clk 0:01:12]}  Bxa3 {[%clk 0:01:02]} 28. Rxc7 {[%clk 0:01:11]}  Nd5 {[%clk 0:00:57]} 29. Rc4 {[%clk 0:01:01]}  Ra8 {[%clk 0:00:50]} 30. Kf2 {[%clk 0:00:35]}  Nb6 {[%clk 0:00:44]} 31. Rc7 {[%clk 0:00:32]}  Nd5 {[%clk 0:00:43]} 32. Rd7 {[%clk 0:00:33]}  Nb4 {[%clk 0:00:33]} 33. Rb1 {[%clk 0:00:30]}  Rh5 {[%clk 0:00:24]} 34. h4 {[%clk 0:00:27]}  Rb5 {[%clk 0:00:18]} 35. Rxb7 {[%clk 0:00:23]}  Rxb7 {[%clk 0:00:17]} 36. Bxb7 {[%clk 0:00:24]}  Rb8 {[%clk 0:00:18]} 37. Be4 {[%clk 0:00:24]}  Rc8 {[%clk 0:00:17]} 38. Be3 {[%clk 0:00:18]}  Nc2 {[%clk 0:00:17]} 39. Bf4 {[%clk 0:00:16]}  Bc5+ {[%clk 0:00:17]} 40. e3 {[%clk 0:00:17]}  a3 {[%clk 0:00:17]} 41. d4 {[%clk 0:00:18]}  a2 {[%clk 0:00:17]} 42. Bxc2 {[%clk 0:00:18]}  axb1=Q {[%clk 0:00:17]} 43. Bxb1 {[%clk 0:00:19]}  Ba7 {[%clk 0:00:16]} 44. Bd3 {[%clk 0:00:18]}  Kf8 {[%clk 0:00:17]} 45. Bd6+ {[%clk 0:00:18]}  Kg8 {[%clk 0:00:16]} 46. Ke2 {[%clk 0:00:18]}  Bb8 {[%clk 0:00:16]} 47. Bxb8 {[%clk 0:00:15]}  Rxb8 {[%clk 0:00:17]} 48. e4 {[%clk 0:00:16]}  Kf8 {[%clk 0:00:17]} 49. e5 {[%clk 0:00:15]}  Ke8 {[%clk 0:00:18]} 50. d5 {[%clk 0:00:16]}  Kd7 {[%clk 0:00:18]} 51. Ke3 {[%clk 0:00:16]}  Rb4 {[%clk 0:00:18]} 52. Be4 {[%clk 0:00:12]}  Ra4 {[%clk 0:00:18]} 53. Kf4 {[%clk 0:00:12]}  h6 {[%clk 0:00:17]} 54. g4 {[%clk 0:00:12]}  g5+ {[%clk 0:00:17]} 55. hxg5 {[%clk 0:00:12]}  hxg5+ {[%clk 0:00:18]} 56. Kf5 {[%clk 0:00:13]}  Ra1 {[%clk 0:00:18]} 57. e6+ {[%clk 0:00:12]}  Ke8 {[%clk 0:00:17]} 58. Kxg5 {[%clk 0:00:12]}  Re1 {[%clk 0:00:15]} 59. Kf5 {[%clk 0:00:11]}  Rf1+ {[%clk 0:00:14]} 60. Ke5 {[%clk 0:00:12]}  Re1 {[%clk 0:00:15]} 61. g5 {[%clk 0:00:11]}  Re2 {[%clk 0:00:15]} 62. Kf5 {[%clk 0:00:08]}  Kf8 {[%clk 0:00:14]} 63. e7+ {[%clk 0:00:06]}  Ke8 {[%clk 0:00:13]} 64. d6 {[%clk 0:00:06]}  Rf2+ {[%clk 0:00:11]} 65. Kg4 {[%clk 0:00:07]}  Rc2 {[%clk 0:00:10]} 66. Bxc2 {[%clk 0:00:06]}  Kd7 {[%clk 0:00:11]} 67. Ba4+ {[%clk 0:00:06]}  Ke6 {[%clk 0:00:11]} 68. e8=Q+ {[%clk 0:00:07]}  Kd5 {[%clk 0:00:11]} 69. d7 {[%clk 0:00:06]}  Kc5 {[%clk 0:00:12]} 70. d8=Q {[%clk 0:00:06]}  Kb4 {[%clk 0:00:12]} 71. Qd4+ {[%clk 0:00:07]}  Ka3 {[%clk 0:00:12]} 72. Qee3+ {[%clk 0:00:07]}  Ka2 {[%clk 0:00:12]} 73. Qdd2+ {[%clk 0:00:08]}  Kb1 {[%clk 0:00:12]} 74. Qee1# {[%clk 0:00:08]} 1-0


[Site "https://www.chess.com"]